bitfinex-derivatives/quotes_BTCF0:USTF0_20251009
["timestamp","ask_amount","ask_price","bid_price","bid_amount"]
[1760050620014,1.40651534,121790.0,121780.0,0.02947672]
[1760050624116,0.66455534,121790.0,121780.0,0.02947672]
[1760050624315,1.40651534,121790.0,121780.0,0.02947672]
[1760050624620,0.66455534,121790.0,121780.0,0.02947672]
[1760050624919,1.40651534,121790.0,121780.0,0.02947672]
[1760050625520,1.27847483,121790.0,121780.0,0.02947672]
[1760050660647,0.53651483,121790.0,121780.0,0.02947672]
[1760050660849,1.27835483,121790.0,121780.0,0.02947672]
[1760050662144,0.53651483,121790.0,121780.0,0.02947672]
[1760050662348,1.27835483,121790.0,121780.0,0.02947672]
[1760050663746,0.53651483,121790.0,121780.0,0.02947672]
[1760050663949,1.27835483,121790.0,121780.0,0.02947672]
[1760050680366,1.0218494,121790.0,121780.0,0.02947672]
[1760050680567,1.27835483,121790.0,121780.0,0.02947672]
[1760050685170,1.27827483,121790.0,121780.0,0.02947672]
[1760050687573,1.40650708,121790.0,121780.0,0.02947672]
[1760050688075,1.40646708,121790.0,121780.0,0.02947672]
[1760050688276,1.36955222,121790.0,121780.0,0.02947672]
[1760050690174,0.98481454,121790.0,121780.0,0.02947672]
[1760050690376,1.36955222,121790.0,121780.0,0.02947672]
[1760050697582,1.36951222,121790.0,121780.0,0.02947672]
[1760050714985,0.24309454,121790.0,121780.0,0.02947672]
[1760050715284,1.36943222,121790.0,121780.0,0.02947672]
[1760050724099,1.36939222,121790.0,121780.0,0.02947672]
[1760050727100,1.36939222,121790.0,121780.0,0.13251733]
[1760050728501,0.62783222,121790.0,121780.0,0.13251733]
[1760050728699,1.36939222,121790.0,121780.0,0.13251733]
[1760050729497,1.36939222,121790.0,121780.0,0.02947672]
[1760050730701,1.36939222,121790.0,121780.0,0.13251733]
[1760050732400,1.36939222,121790.0,121780.0,0.02947672]
[1760050741004,0.62783222,121790.0,121780.0,0.02947672]
[1760050741307,1.36931222,121790.0,121780.0,0.02947672]
[1760050742698,0.43546338,121790.0,121780.0,0.46225672]
[1760050742900,0.43546338,121790.0,121780.0,0.65462556]
[1760050743098,0.24309454,121790.0,121780.0,0.9290686]
[1760050743306,0.24309454,121790.0,121780.0,0.73669976]
[1760050743699,0.24309454,121790.0,121780.0,0.83974037]
[1760050744097,0.24309454,121790.0,121780.0,1.03210921]
[1760050745803,0.24309454,121790.0,121780.0,0.95003501]
[1760050746112,0.43546338,121790.0,121780.0,0.75766617]
[1760050746510,0.43546338,121790.0,121780.0,0.65462556]
[1760050747408,0.24309454,121790.0,121780.0,0.46225672]
[1760050749606,0.24309454,121790.0,121780.0,0.71861594]
[1760050749911,0.24309454,121790.0,121780.0,0.06225672]
[1760050753314,0.24309454,121790.0,121780.0,0.16529733]
[1760050755114,0.24309454,121790.0,121780.0,0.42165655]
[1760050757217,0.296,121790.0,121780.0,0.42165655]
[1760050761722,0.296,121790.0,121780.0,0.31861594]
[1760050761923,0.296,121790.0,121780.0,0.42141295]
[1760050762221,0.296,121790.0,121780.0,0.31861594]
[1760050763217,0.296,121790.0,121780.0,0.42140131]
[1760050764821,0.296,121790.0,121780.0,0.31861594]
[1760050766225,0.296,121790.0,121780.0,0.42141724]
[1760050767225,0.296,121790.0,121780.0,1.16269724]
[1760050769825,0.296,121790.0,121780.0,0.42141724]
[1760050770024,0.296,121790.0,121780.0,1.16269724]
[1760050770622,0.296,121790.0,121780.0,0.16505802]
[1760050770824,0.55235922,121790.0,121780.0,0.16505802]
[1760050774035,0.95235922,121790.0,121780.0,0.16505802]
[1760050782341,0.55235922,121790.0,121780.0,0.16505802]
[1760050784242,0.55235922,121790.0,121780.0,0.06225672]
[1760050790940,0.296,121790.0,121780.0,0.06225672]
[1760050791146,0.92643922,121790.0,121780.0,0.06225672]
[1760050791346,0.55235922,121790.0,121780.0,0.06225672]
[1760050791546,1.29363922,121790.0,121780.0,0.06225672]
[1760050796954,0.55235922,121790.0,121780.0,0.06225672]
[1760050797154,1.29363922,121790.0,121780.0,0.06225672]
[1760050797955,0.55235922,121790.0,121780.0,0.06225672]
[1760050798154,1.29363922,121790.0,121780.0,0.06225672]
[1760050799549,0.55235922,121790.0,121780.0,0.06225672]
[1760050799755,1.29363922,121790.0,121780.0,0.06225672]
[1760050800854,1.29363922,121790.0,121780.0,0.16533798]
[1760050801556,0.55235922,121790.0,121780.0,0.16533798]
[1760050801756,1.29363922,121790.0,121780.0,0.06225672]
[1760050805158,0.55235922,121790.0,121780.0,0.06225672]
[1760050805358,1.29363922,121790.0,121780.0,0.06225672]
[1760050807362,0.55235922,121790.0,121780.0,0.06225672]
[1760050807661,1.29363922,121790.0,121780.0,0.06225672]
[1760050808360,1.29363922,121790.0,121780.0,0.16533798]
[1760050808557,1.29363922,121790.0,121780.0,0.06225672]
[1760050809558,1.22958286,121790.0,121780.0,0.06225672]
[1760050810757,0.48830286,121790.0,121780.0,0.06225672]
[1760050810962,1.22958286,121790.0,121780.0,0.06225672]
[1760050811163,1.22958286,121790.0,121780.0,0.16537209]
[1760050811364,1.22954286,121790.0,121780.0,0.16537209]
[1760050812664,1.42184572,121790.0,121780.0,0.16537209]
[1760050813466,1.42184572,121790.0,121780.0,0.06225672]
[1760050816464,1.42184572,121790.0,121780.0,0.1653827]
[1760050817366,1.42184572,121790.0,121780.0,0.06225672]
[1760050819465,1.42184572,121790.0,121780.0,0.16537304]
[1760050819665,1.42184572,121790.0,121780.0,0.06225672]
[1760050819860,1.42184572,121790.0,121780.0,0.16537257]
[1760050821066,1.42184572,121790.0,121780.0,0.06225672]
[1760050826665,0.68060572,121790.0,121780.0,0.06225672]
[1760050826972,1.22954286,121790.0,121780.0,0.06225672]
[1760050827772,1.42184572,121790.0,121780.0,0.06225672]
[1760050828074,1.22954286,121790.0,121780.0,0.06225672]
[1760050829071,1.42184572,121790.0,121780.0,0.06225672]
[1760050832971,1.27290858,121790.0,121780.0,0.13258247]
[1760050833176,2.01410858,121790.0,121780.0,0.13258247]
[1760050833379,1.82180572,121790.0,121780.0,0.13258247]
[1760050836175,1.82180572,121790.0,121780.0,0.02947672]
[1760050841787,1.82180572,121790.0,121780.0,0.13258247]
[1760050842292,1.42180572,121790.0,121780.0,0.13258247]
[1760050842694,1.42180572,121790.0,121780.0,0.02947672]
[1760050845295,2.01410858,121790.0,121780.0,0.02947672]
[1760050846098,1.82180572,121790.0,121780.0,0.02947672]
[1760050846393,2.01410858,121790.0,121780.0,0.02947672]
[1760050848303,1.27290858,121790.0,121780.0,0.02947672]
[1760050848599,2.01414858,121790.0,121780.0,0.02947672]
[1760050849499,1.08060572,121790.0,121780.0,0.02947672]
[1760050849805,1.82184572,121790.0,121780.0,0.02947672]
[1760050850903,1.08060572,121790.0,121780.0,0.02947672]
[1760050851103,1.82188572,121790.0,121780.0,0.02947672]
[1760050851401,1.82184572,121790.0,121780.0,0.02947672]
[1760050853301,1.08060572,121790.0,121780.0,0.02947672]
[1760050853493,1.82188572,121790.0,121780.0,0.02947672]
[1760050855400,2.01418858,121790.0,121780.0,0.02947672]
[1760050858802,1.27290858,121790.0,121770.0,0.02334811]
[1760050859007,1.31818858,121780.0,121770.0,0.02326]
[1760050859307,1.60818858,121780.0,121760.0,0.02801752]
[1760050859508,0.38460572,121770.0,121760.0,0.13112327]
[1760050859807,0.67460572,121770.0,121760.0,0.13112327]
[1760050861302,0.67460572,121770.0,121760.0,0.02801752]
[1760050862805,0.68267379,121770.0,121760.0,0.13112327]
[1760050863300,1.42595379,121770.0,121760.0,0.02801752]
[1760050864311,1.42795379,121770.0,121760.0,0.02801752]
[1760050864508,1.42795379,121770.0,121760.0,0.13112327]
[1760050865512,1.49385489,121770.0,121760.0,0.13112327]
[1760050866102,1.49385489,121770.0,121760.0,0.02801752]
[1760050867914,1.10924917,121770.0,121760.0,0.02801752]
[1760050868214,1.49385489,121770.0,121760.0,0.02801752]
[1760050869011,0.94487775,121770.0,121760.0,0.02801752]
[1760050869219,1.68619775,121770.0,121750.0,0.02309]
[1760050869511,0.57690858,121760.0,121750.0,0.02309]
[1760050869814,0.86690858,121760.0,121750.0,0.02309]
[1760050870015,0.86690858,121760.0,121750.0,0.12619575]
[1760050870210,0.29,121760.0,121750.0,0.15722575]
[1760050870415,1.41592572,121760.0,121750.0,0.12619575]
[1760050871116,1.60822858,121760.0,121750.0,0.12619575]
[1760050871313,1.60822858,121760.0,121750.0,0.02309]
[1760050871616,1.5445374,121760.0,121750.0,0.02309]
[1760050875021,1.5485374,121760.0,121750.0,0.02309]
[1760050875615,1.5485774,121760.0,121750.0,0.02309]
[1760050880018,0.8072174,121760.0,121750.0,0.02309]
[1760050880213,1.5485774,121760.0,121750.0,0.02309]
[1760050881621,0.8072174,121760.0,121750.0,0.02309]
[1760050881822,1.5485774,121760.0,121750.0,0.02309]
[1760050882425,0.8072174,121760.0,121750.0,0.02309]
[1760050882925,1.5486174,121760.0,121750.0,0.02309]
[1760050883123,0.8072174,121760.0,121750.0,0.02309]
[1760050883319,1.5486174,121760.0,121750.0,0.02309]
[1760050885019,0.8072174,121760.0,121750.0,0.02309]
[1760050885214,1.5486174,121760.0,121750.0,0.02309]
[1760050885820,0.8072174,121760.0,121750.0,0.02309]
[1760050886022,1.5486174,121760.0,121750.0,0.02309]
[1760050891732,0.8072174,121760.0,121750.0,0.02309]
[1760050891933,1.5486174,121760.0,121750.0,0.02309]
[1760050893232,0.8072174,121760.0,121750.0,0.02309]
[1760050893433,1.5486174,121760.0,121750.0,0.02309]
[1760050893627,0.294,121760.0,121750.0,0.02309]
[1760050893933,1.2142174,121760.0,121750.0,0.02309]
[1760050894335,0.8072174,121760.0,121750.0,0.02309]
[1760050894630,1.5486174,121760.0,121750.0,0.02309]
[1760050895334,0.8072174,121760.0,121750.0,0.02309]
[1760050895532,1.5486174,121760.0,121750.0,0.02309]
[1760050902640,0.8072174,121760.0,121750.0,0.02309]
[1760050902841,1.5486174,121760.0,121750.0,0.02309]
[1760050906346,0.8072174,121760.0,121750.0,0.02309]
[1760050906641,1.5486174,121760.0,121750.0,0.02309]
[1760050906837,0.8072174,121760.0,121750.0,0.02309]
[1760050907043,1.5486174,121760.0,121750.0,0.02309]
[1760050913442,1.9968174,121760.0,121750.0,0.02309]
[1760050913650,1.9485774,121760.0,121740.0,0.00492833]
[1760050913947,0.2566087,121750.0,121740.0,0.02370833]
[1760050914148,0.29,121750.0,121740.0,0.02370833]
[1760050914344,0.5466087,121750.0,121740.0,0.02370833]
[1760050916343,0.5476087,121750.0,121740.0,0.02370833]
[1760050918049,0.5486087,121750.0,121740.0,0.02370833]
[1760050918847,0.5476087,121750.0,121740.0,0.02370833]
[1760050919047,0.5506087,121750.0,121740.0,0.02370833]
[1760050919650,1.2920887,121750.0,121740.0,0.02370833]
[1760050920851,1.7402887,121750.0,121740.0,0.02370833]
[1760050924747,1.7422887,121750.0,121740.0,0.02370833]
[1760050926456,1.0008087,121750.0,121740.0,0.02370833]
[1760050926652,1.7422487,121750.0,121740.0,0.02370833]
[1760050929654,1.0008087,121750.0,121740.0,0.02370833]
[1760050929854,1.2941687,121750.0,121740.0,0.42370833]
[1760050932760,1.03756,121750.0,121740.0,0.42370833]
[1760050932958,1.2941687,121750.0,121740.0,0.42370833]
[1760050933463,1.42251884,121750.0,121740.0,0.42370833]
[1760050934060,1.42259884,121750.0,121740.0,0.42370833]
[1760050935056,0.87343826,121750.0,121740.0,0.02370833]
[1760050935263,1.61503826,121750.0,121740.0,0.02370833]
[1760050937954,1.61503826,121750.0,121730.0,0.01867]
[1760050937955,0.57743826,121740.0,121730.0,0.01867]
[1760050938160,0.84743826,121740.0,121730.0,0.01867]
[1760050939767,0.84943826,121740.0,121730.0,0.01867]
[1760050943065,0.272,121740.0,121730.0,0.01867]
[1760050943264,0.84943826,121740.0,121730.0,0.01867]
[1760050943666,1.39875884,121740.0,121730.0,0.44986]
[1760050943867,0.65695884,121740.0,121730.0,0.44986]
[1760050944164,1.39875884,121740.0,121730.0,0.41867]
[1760050944365,1.59123826,121740.0,121730.0,0.41867]
[1760050944866,1.39875884,121740.0,121730.0,0.41867]
[1760050945165,1.59123826,121740.0,121730.0,0.41867]
[1760050945568,1.59323826,121740.0,121730.0,0.41867]
[1760050946167,1.40075884,121740.0,121730.0,0.41867]
[1760050946968,1.59323826,121740.0,121730.0,0.41867]
[1760050947368,1.40075884,121740.0,121730.0,0.41867]
[1760050947563,0.65895884,121740.0,121730.0,0.41867]
[1760050947772,1.40083884,121740.0,121730.0,0.41867]
[1760050948165,1.59331826,121740.0,121730.0,0.41867]
[1760050948573,0.85143826,121740.0,121730.0,0.41867]
[1760050948872,1.40075884,121740.0,121730.0,0.41867]
[1760050950072,1.59323826,121740.0,121730.0,0.41867]
[1760050950268,1.40075884,121740.0,121730.0,0.41867]
[1760050950870,1.59323826,121740.0,121730.0,0.41867]
[1760050953172,1.59123826,121740.0,121730.0,0.41867]
[1760050953475,1.59323826,121740.0,121730.0,0.41867]
[1760050954075,1.0158,121740.0,121730.0,0.41867]
[1760050954276,1.59123826,121740.0,121730.0,0.41867]
[1760050954475,1.59323826,121740.0,121730.0,0.41867]
[1760050959175,0.85143826,121740.0,121730.0,0.41867]
[1760050959375,1.59307826,121740.0,121730.0,0.41867]
[1760050962382,1.59307826,121740.0,121730.0,0.01867]
[1760050964882,1.59295826,121740.0,121730.0,0.01867]
[1760050969386,1.59295826,121740.0,121710.0,0.01878]
[1760050969387,1.99299826,121740.0,121710.0,0.01878]
[1760050969584,0.57743826,121720.0,121710.0,0.01878]
[1760050969886,1.31911826,121720.0,121710.0,0.01878]
[1760050970584,1.63911826,121720.0,121710.0,0.01878]
[1760050970884,0.89743826,121720.0,121700.0,0.02326995]
[1760050971084,1.12667884,121710.0,121700.0,0.02326995]
[1760050971284,1.44667884,121710.0,121700.0,0.02326995]
[1760050972376,1.45497432,121710.0,121700.0,0.02326995]
[1760050973183,1.64745374,121710.0,121700.0,0.02326995]
[1760050973885,1.52061384,121710.0,121700.0,0.02326995]
[1760050974484,0.77889384,121710.0,121700.0,0.02326995]
[1760050974788,1.52065384,121710.0,121700.0,0.02326995]
[1760050975185,1.71313326,121710.0,121700.0,0.02326995]
[1760050975577,1.37137326,121710.0,121690.0,0.01817]
[1760050975783,1.31919826,121700.0,121690.0,0.01817]
[1760050975983,1.58919826,121700.0,121690.0,0.01817]
[1760050977385,1.58919826,121700.0,121690.0,0.12149223]
[1760050978090,1.58963826,121700.0,121690.0,0.12149223]
[1760050979187,0.84743826,121700.0,121690.0,0.12149223]
[1760050979489,0.27,121700.0,121690.0,0.14942223]
[1760050979787,1.39711884,121700.0,121690.0,0.0461]
[1760050979979,0.65495884,121700.0,121690.0,0.0461]
[1760050980179,1.39755884,121700.0,121690.0,0.4461]
[1760050980386,0.65495884,121700.0,121690.0,0.4461]
[1760050980585,1.39755884,121700.0,121690.0,0.4461]
[1760050981887,0.65495884,121700.0,121690.0,0.4471]
[1760050982087,1.39755884,121700.0,121690.0,0.4471]
[1760050982991,0.65495884,121700.0,121690.0,0.4471]
[1760050983186,1.39755884,121700.0,121690.0,0.4471]
[1760050983589,0.27,121700.0,121690.0,0.4471]
[1760050983790,1.39751884,121700.0,121690.0,0.4471]
[1760050984786,1.01256,121700.0,121690.0,0.4471]
[1760050984991,1.39751884,121700.0,121690.0,0.4471]
[1760050985593,0.65495884,121700.0,121690.0,0.4471]
[1760050985793,1.39751884,121700.0,121690.0,0.4471]
[1760050986688,0.65495884,121700.0,121690.0,0.4471]
[1760050986893,1.39747884,121700.0,121690.0,0.4471]
[1760050988491,0.27,121700.0,121690.0,0.44991]
[1760050988696,0.27,121700.0,121690.0,0.64238942]
[1760050988887,0.65356,121700.0,121690.0,0.64238942]
[1760050989084,0.84603942,121700.0,121690.0,0.64238942]
[1760050989289,0.84603942,121700.0,121690.0,0.44991]
[1760050989489,1.20543942,121700.0,121690.0,0.64238942]
[1760050989696,1.20543942,121700.0,121690.0,0.44991]
[1760050990100,1.20543942,121700.0,121690.0,0.64238942]
[1760050994596,1.20527942,121700.0,121690.0,0.64238942]
[1760050995696,1.0128,121700.0,121690.0,0.44991]
[1760050996098,0.27,121700.0,121690.0,0.44991]
[1760050996396,1.0128,121700.0,121690.0,0.44991]
[1760051002799,0.27,121700.0,121690.0,0.44991]
[1760051003097,1.01268,121700.0,121690.0,0.44991]
[1760051003294,0.27,121700.0,121690.0,0.44991]
[1760051003903,1.0126,121700.0,121690.0,0.44991]
[1760051004096,0.27,121700.0,121690.0,0.44991]
[1760051004397,1.0126,121700.0,121690.0,0.70666106]
[1760051005599,1.0126,121700.0,121690.0,0.44991]
[1760051008199,1.0126,121700.0,121690.0,0.59719503]
[1760051008400,0.27,121700.0,121690.0,0.59719503]
[1760051008699,1.01248,121700.0,121690.0,0.59719503]
[1760051012906,1.26923106,121700.0,121690.0,0.59719503]
[1760051014309,1.01248,121700.0,121690.0,0.59719503]
[1760051015006,0.27,121700.0,121690.0,0.85394609]
[1760051015202,1.01236,121700.0,121690.0,0.85394609]
[1760051016210,0.27,121700.0,121690.0,0.85394609]
[1760051018312,0.27,121700.0,121690.0,0.59719503]
[1760051018510,0.27,121700.0,121690.0,0.85394609]
[1760051018813,0.27,121700.0,121690.0,0.44991]
[1760051019614,0.27,121700.0,121690.0,0.59772902]
[1760051022314,0.27,121700.0,121690.0,0.04991]
[1760051026919,0.52675106,121700.0,121690.0,0.04991]
[1760051032622,0.52675106,121700.0,121690.0,0.19772902]
[1760051035123,0.52675106,121700.0,121690.0,0.04991]
[1760051038226,0.92675106,121700.0,121690.0,0.19772902]
[1760051038529,1.66931106,121700.0,121690.0,0.16698902]
[1760051039029,1.66931106,121700.0,121690.0,0.01917]
[1760051042832,1.66931106,121700.0,121690.0,0.04741]
[1760051043131,1.66931106,121700.0,121690.0,0.01917]
[1760051045034,1.41256,121700.0,121690.0,0.04741]
[1760051045235,1.66931106,121700.0,121690.0,0.01917]
[1760051045733,0.92675106,121700.0,121690.0,0.04741]
[1760051046033,1.66927106,121700.0,121690.0,0.04741]
[1760051048442,0.92675106,121700.0,121690.0,0.04741]
[1760051048641,1.66923106,121700.0,121690.0,0.04741]
[1760051048839,0.92675106,121700.0,121690.0,0.04741]
[1760051049041,1.66923106,121700.0,121690.0,0.04741]
[1760051049539,0.92675106,121700.0,121690.0,0.04741]
[1760051049736,1.66923106,121700.0,121690.0,0.04741]
[1760051051738,0.92675106,121700.0,121690.0,0.01917]
[1760051051943,1.66919106,121700.0,121690.0,0.04741]
[1760051052143,1.66919106,121700.0,121690.0,0.01917]
[1760051055348,0.92675106,121700.0,121690.0,0.01917]
[1760051055549,1.99027001,121700.0,121690.0,0.01917]
[1760051057054,1.99027001,121700.0,121690.0,0.04741]
[1760051057454,1.99027001,121700.0,121690.0,0.01917]
[1760051057651,1.24791001,121700.0,121690.0,0.01917]
[1760051057853,1.05527334,121700.0,121690.0,0.04741]
[1760051058051,1.79759334,121700.0,121690.0,0.04741]
[1760051062252,0.67,121700.0,121690.0,0.04741]
[1760051062551,1.79755334,121700.0,121690.0,0.04741]
[1760051063554,1.05527334,121700.0,121690.0,0.04741]
[1760051063761,1.79747334,121700.0,121690.0,0.04741]
[1760051066058,1.05527334,121700.0,121690.0,0.04741]
[1760051066258,1.79743334,121700.0,121690.0,0.04741]
[1760051067760,1.05527334,121700.0,121690.0,0.04741]
[1760051067961,1.79743334,121700.0,121690.0,0.04741]
[1760051068661,0.65527334,121700.0,121690.0,0.04741]
[1760051068861,0.65527334,121700.0,121690.0,0.64004667]
[1760051068862,0.27,121700.0,121690.0,0.64004667]
[1760051069363,0.98191667,121700.0,121690.0,0.64004667]
[1760051069863,1.01252,121700.0,121690.0,0.64004667]
[1760051070362,1.20515667,121700.0,121690.0,0.64004667]
[1760051070764,0.46263667,121700.0,121690.0,0.64004667]
[1760051070968,1.20511667,121700.0,121690.0,0.64004667]
[1760051073165,1.01248,121700.0,121690.0,0.64004667]
[1760051073363,0.27,121700.0,121690.0,0.73051637]
[1760051073664,0.97192,121700.0,121690.0,0.64838157]
[1760051075268,0.18924576,121700.0,121690.0,0.73051637]
[1760051078764,0.18924576,121700.0,121690.0,0.5378797]
[1760051079170,0.18924576,121700.0,121690.0,0.73051637]
[1760051082374,0.18924576,121700.0,121690.0,0.33051637]
[1760051087189,0.18924576,121700.0,121690.0,0.1295448]
[1760051087387,0.38188243,121700.0,121690.0,0.24004667]
[1760051089391,0.38288243,121700.0,121690.0,0.23904667]
[1760051090591,0.38388243,121700.0,121690.0,0.23904667]
[1760051098994,0.5765191,121700.0,121690.0,0.04641]
[1760051102095,0.19124576,121700.0,121690.0,0.04641]
[1760051102293,0.56168576,121700.0,121690.0,0.04641]
[1760051102499,0.9469591,121700.0,121690.0,0.04641]
[1760051106495,1.3186391,121700.0,121690.0,0.04641]
[1760051107192,0.38388243,121700.0,121690.0,0.23904667]
[1760051107392,1.12596243,121700.0,121690.0,0.23904667]
[1760051107893,1.12592243,121700.0,121690.0,0.23904667]
[1760051108089,1.12592243,121700.0,121690.0,0.04641]
[1760051108290,1.12592243,121700.0,121690.0,1.54641]
[1760051109601,0.38388243,121700.0,121690.0,1.54641]
[1760051109898,1.12588243,121700.0,121690.0,1.54641]
[1760051110194,1.12588243,121700.0,121690.0,1.73904667]
[1760051112298,1.12588243,121700.0,121690.0,1.54641]
[1760051113703,1.3185191,121700.0,121690.0,1.54641]
[1760051114100,1.3184791,121700.0,121690.0,1.54641]
[1760051117603,1.18997677,121700.0,121690.0,1.54641]
[1760051121101,1.18997677,121700.0,121690.0,0.04641]
[1760051121603,1.18997677,121700.0,121690.0,1.54641]
[1760051124006,0.44801677,121700.0,121690.0,1.54641]
[1760051124207,1.17569677,121700.0,121690.0,1.54641]
[1760051127808,1.17569677,121700.0,121690.0,1.69422902]
[1760051128107,1.18989677,121700.0,121690.0,1.69422902]
[1760051128303,0.44801677,121700.0,121690.0,1.69422902]
[1760051128509,1.18989677,121700.0,121690.0,1.69422902]
[1760051131112,1.18989677,121700.0,121690.0,1.54641]
[1760051143211,0.84801677,121700.0,121690.0,1e-07]
[1760051143417,1.58989677,121700.0,121690.0,1e-07]
[1760051143816,0.84801677,121700.0,121690.0,1e-07]
[1760051144016,1.58993677,121700.0,121690.0,1e-07]
[1760051145516,0.84801677,121700.0,121690.0,1e-07]
[1760051145722,1.59001677,121700.0,121690.0,1e-07]
[1760051147423,0.84801677,121700.0,121690.0,1e-07]
[1760051147727,1.59005677,121700.0,121690.0,1e-07]
[1760051148223,0.84801677,121700.0,121690.0,1e-07]
[1760051148724,1.58997677,121700.0,121690.0,1e-07]
[1760051150828,0.84801677,121700.0,121690.0,1e-07]
[1760051151025,1.59001677,121700.0,121690.0,1e-07]
[1760051152729,0.84801677,121700.0,121690.0,1e-07]
[1760051152925,1.58997677,121700.0,121690.0,1e-07]
[1760051157937,0.84801677,121700.0,121690.0,1e-07]
[1760051158138,1.58997677,121700.0,121690.0,1e-07]
[1760051159438,0.84801677,121700.0,121690.0,1e-07]
[1760051159641,1.58997677,121700.0,121690.0,1e-07]
[1760051165735,0.84801677,121700.0,121690.0,1e-07]
[1760051165941,0.84801677,121700.0,121690.0,0.0283001]
[1760051166143,1.58997677,121700.0,121690.0,0.0283001]
[1760051166639,1.58997677,121700.0,121690.0,1e-07]
[1760051168542,0.84801677,121700.0,121690.0,1e-07]
[1760051168738,1.58997677,121700.0,121690.0,1e-07]
[1760051179550,1.91110284,121700.0,121690.0,1e-07]
[1760051183654,1.91110284,121700.0,121680.0,0.0231911]
[1760051183852,0.38526472,121690.0,121680.0,0.0231911]
[1760051184051,0.65526472,121690.0,121680.0,0.0231911]
[1760051184654,0.65526472,121690.0,121680.0,0.0514911]
[1760051184956,1.39722472,121690.0,121680.0,0.0514911]
[1760051185252,0.65526472,121690.0,121680.0,0.0514911]
[1760051185454,1.39722472,121690.0,121680.0,0.0514911]
[1760051185653,0.65526472,121690.0,121680.0,0.0514911]
[1760051185852,1.39722472,121690.0,121680.0,0.0514911]
[1760051187057,0.65526472,121690.0,121680.0,0.0514911]
[1760051187253,1.39722472,121690.0,121680.0,0.0514911]
[1760051187950,1.39722472,121690.0,121680.0,0.0524911]
[1760051192759,1.39722472,121690.0,121680.0,0.0241911]
[1760051192959,1.58985708,121690.0,121680.0,0.0241911]
[1760051194853,1.46362244,121690.0,121680.0,0.0241911]
[1760051198464,1.6562548,121690.0,121680.0,0.0241911]
[1760051198958,1.6562548,121690.0,121680.0,0.02410076]
[1760051199163,1.6562948,121690.0,121680.0,0.02410076]
[1760051200862,1.6562948,121690.0,121680.0,0.00593076]
[1760051201068,2.0562948,121690.0,121660.0,0.02310157]
[1760051201267,0.38526472,121670.0,121660.0,0.02310157]
[1760051201469,1.39730472,121670.0,121660.0,0.02310157]
[1760051202764,1.58993708,121670.0,121660.0,0.02310157]
[1760051203171,1.39730472,121670.0,121660.0,0.02310157]
[1760051203470,1.58993708,121670.0,121660.0,0.02310157]
[1760051205271,0.84789708,121670.0,121660.0,0.02310157]
[1760051205571,1.58993708,121670.0,121660.0,0.02310157]
[1760051205765,0.84789708,121670.0,121660.0,0.02310157]
[1760051205967,1.58993708,121670.0,121660.0,0.02310157]
[1760051206670,0.84789708,121670.0,121660.0,0.02310157]
[1760051207167,1.58997708,121670.0,121660.0,0.02310157]
[1760051209566,0.84789708,121670.0,121660.0,0.02310157]
[1760051209762,1.58997708,121670.0,121660.0,0.02310157]
[1760051211868,1.24789708,121670.0,121650.0,0.01656]
[1760051212073,1.32009708,121660.0,121640.0,0.16822141]
[1760051212374,0.38526472,121650.0,121640.0,0.16822141]
[1760051212572,0.69526472,121650.0,121640.0,0.16822141]
[1760051212773,0.69526472,121650.0,121640.0,0.02040239]
[1760051213074,0.70366207,121650.0,121640.0,0.02040239]
[1760051215070,0.96065049,121650.0,121640.0,9e-08]
[1760051215277,1.36065049,121650.0,121630.0,0.16328902]
[1760051215475,1.32029708,121640.0,121630.0,0.16328902]
[1760051215671,1.63029708,121640.0,121630.0,0.16328902]
[1760051215871,2.03029708,121640.0,121630.0,0.14781902]
[1760051216272,1.28789708,121640.0,121630.0,0.11170672]
[1760051216777,2.03053708,121640.0,121630.0,0.11170672]
[1760051219074,1.28789708,121640.0,121630.0,0.11170672]
[1760051219277,2.03053708,121640.0,121630.0,0.11170672]
[1760051219478,2.03053708,121640.0,121620.0,0.0212332]
[1760051219679,0.38526472,121630.0,121620.0,0.0212332]
[1760051219878,0.65526472,121630.0,121620.0,0.0212332]
[1760051220774,1.39794472,121630.0,121620.0,0.0212332]
[1760051220979,1.39790472,121630.0,121620.0,0.0480432]
[1760051221680,0.65526472,121630.0,121620.0,0.0480432]
[1760051221979,1.39790472,121630.0,121620.0,0.0212332]
[1760051230689,1.39790472,121630.0,121620.0,0.0049332]
[1760051231889,1.39790472,121630.0,121620.0,0.0199932]
[1760051235295,1.39782472,121630.0,121620.0,0.0199932]
[1760051236891,0.65526472,121630.0,121620.0,0.0199932]
[1760051237092,1.39778472,121630.0,121620.0,0.0199932]
[1760051237294,0.65526472,121630.0,121620.0,0.0199932]
[1760051237693,1.39774472,121630.0,121620.0,0.0199932]
[1760051239495,1.26964164,121630.0,121620.0,0.0199932]
[1760051243801,1.26956164,121630.0,121620.0,0.0199932]
[1760051244598,0.52716164,121630.0,121620.0,0.0199932]
[1760051244799,1.26956164,121630.0,121620.0,0.0199932]
[1760051246599,0.52716164,121630.0,121620.0,0.0049332]
[1760051246798,0.78432328,121630.0,121600.0,0.02123401]
[1760051246992,0.51432328,121610.0,121600.0,0.02123401]
[1760051247197,1.52676328,121610.0,121600.0,0.02123401]
[1760051247398,1.52676328,121610.0,121600.0,0.00493401]
[1760051247604,1.52676328,121610.0,121590.0,8.915e-05]
[1760051247904,1.25708328,121600.0,121580.0,0.01999482]
[1760051248102,0.25716164,121590.0,121580.0,0.00493482]
[1760051248306,1.31992164,121590.0,121580.0,0.00493482]
[1760051248800,1.32012164,121590.0,121580.0,0.01999482]
[1760051249506,1.41055673,121590.0,121580.0,0.01999482]
[1760051250006,1.41059673,121590.0,121580.0,0.01999482]
[1760051250507,1.41059673,121590.0,121580.0,0.02099482]
[1760051250799,0.41043509,121590.0,121580.0,0.02099482]
[1760051251009,1.41055673,121590.0,121580.0,0.02099482]
[1760051251898,1.4773115,121590.0,121580.0,0.02099482]
[1760051253407,1.4773115,121590.0,121580.0,0.00593482]
[1760051253809,1.4773115,121590.0,121580.0,0.02103482]
[1760051254510,0.7343515,121590.0,121580.0,0.02103482]
[1760051254711,1.4773115,121590.0,121580.0,0.02103482]
[1760051255706,1.4773115,121590.0,121580.0,0.02203482]
[1760051256106,1.22014986,121590.0,121580.0,0.02203482]
[1760051256305,1.4773115,121590.0,121580.0,0.02203482]
[1760051264914,0.7343515,121590.0,121580.0,0.02203482]
[1760051265118,1.4771915,121590.0,121580.0,0.02203482]
[1760051269832,1.4771515,121590.0,121580.0,0.02203482]
[1760051271140,1.4771115,121590.0,121580.0,0.02203482]
[1760051272037,0.7343515,121590.0,121580.0,0.02203482]
[1760051272334,1.4770715,121590.0,121580.0,0.04856482]
[1760051276241,1.50081957,121590.0,121580.0,0.04856482]
[1760051276435,1.4770715,121590.0,121580.0,0.04856482]